Cogmind - Beta 16 @@@ ROGUE MODE // 2025.10.23 @ 00:57:30 Player: Spoodle Result: Self-destructed Performance ------------- Evolutions (4) 2000 Regions Visited (11) 2200 Robots Destroyed (215) 1075 Value Destroyed (6041) 6041 Prototype IDs (41) 820 Alien Tech Used (0) 0 Bonus (2285) 2285 TOTAL SCORE: 14421 Bonus ------- High Alert Combat Kills 864 Follower Combat Kills 621 Registered with UFD 300 Met Optimus in HQ 500 Cogmind --------- Core Integrity 668/850 Matter 300/300 Energy 315/315 System Corruption 2% Temperature Cool (0) Movement Core (1150) Ox22 Location -6/Factory Parts ------- > --- POWER (2) -------- Improved Ion Engine Light Angular Momentum Engine > --- PROPULSION (2) --- (None) > --- UTILITY (8) ------ Scrap Suit Makeshift Microdissipator Network High-capacity Storage Unit Machine Analyzer Enhanced Optical Array Improved Signal Interpreter > --- WEAPON (3) ------- Overtuned Pulse Rifle Heavy Particle Gun Precision Beam Rifle > --- INVENTORY (20) --- Light Treads Improved Terrain Scanner Advanced Targeting Computer Advanced Targeting Computer Core Analyzer Improved Particle Charger Force Field Dynamic Insulation System Drone Bay (2/2) Overtuned Coil Gun Overtuned Railgun Mini Grenade Launcher Missile Launcher Heavy Missile Launcher Improved Datajack CPS Tube (2) Katana DRS Beacon (Ready) Botcube Peak State ------------ > --- POWER ------------ Reinforced Deuterium Engine > --- PROPULSION ------- Light Treads Light Treads > --- UTILITY ---------- Scrap Suit Makeshift Microdissipator Network High-capacity Storage Unit Machine Analyzer Enhanced Optical Array Improved Signal Interpreter Drone Bay > --- WEAPON ----------- Overtuned Pulse Rifle Heavy Particle Gun Precision Beam Rifle > --- INVENTORY -------- Light Treads Improved Terrain Scanner Advanced Targeting Computer Advanced Targeting Computer Core Analyzer Improved Particle Charger Force Field Dynamic Insulation System Drone Bay Overtuned Coil Gun Overtuned Railgun Mini Grenade Launcher Missile Launcher Heavy Missile Launcher Improved Datajack CPS Tube Katana DRS Beacon Botcube [Rating: 54] Favorites ----------- Power Reinforced Deuterium Engine Engine Reinforced Deuterium Engine Power Core Light Nuclear Core Propulsion Light Treads Treads Light Treads Leg Aluminum Leg Wheel Compact Wheel Flight Unit Improved VTOL Module Utility Improved Heat Sink Device Improved Heat Sink Storage High-capacity Storage Unit Processor Machine Analyzer Protection Light Armor Plating Weapon Precision Beam Rifle Energy Gun Precision Beam Rifle Ballistic Gun Improved Assault Rifle Launcher Mini Grenade Launcher Special Weapon CPS Tube Slashing Weapon Katana Special Melee Weapon Improved Datajack Build | -11 -10 -10 -9 -9 -9 -8 -8 -8 -8 -8 -6 ------- Run | Yrd Mat Min Mat Min Exi Min Mat Sto Rec Scr Fac Slots Evolved 8 | . . . 2 . . . 2 . . . 4 Power 1 | . . . . . . . . . . . 1 Propulsion . | . . . . . . . . . . . . Utility 6 | . . . 1 . . . 2 . . . 3 Weapon 1 | . . . 1 . . . . . . . . Parts Attached 118 | 8 6 1 18 1 1 6 25 29 2 5 16 Power 13 | 2 1 . 3 . . . . 4 . . 3 Engine 12 | 2 . . 3 . . . . 4 . . 3 Core 1 | . 1 . . . . . . . . . . Reactor . | . . . . . . . . . . . . Propulsion 33 | 2 3 1 5 . . 2 9 9 . 1 1 Treads 27 | . 1 1 5 . . 2 8 9 . . 1 Leg 4 | 2 2 . . . . . . . . . . Wheel 1 | . . . . . . . . . . 1 . Hover . | . . . . . . . . . . . . Flight 1 | . . . . . . . 1 . . . . Utility 37 | 2 1 . 3 1 . 1 10 6 1 3 9 Device 20 | 1 1 . 1 1 . 1 4 4 . 1 6 Storage 6 | 1 . . 2 . . . 1 . . 2 . Processor 4 | . . . . . . . 1 . . . 3 Hackware . | . . . . . . . . . . . . Protection 7 | . . . . . . . 4 2 1 . . Artifact . | . . . . . . . . . . . . Weapon 35 | 2 1 . 7 . 1 3 6 10 1 1 3 Energy Gun 18 | 2 . . 3 . . 2 2 7 . 1 1 Energy Cannon . | . . . . . . . . . . . . Ballistic Gun 10 | . 1 . 4 . . . 2 3 . . . Ballistic Cannon . | . . . . . . . . . . . . Launcher 3 | . . . . . . 1 1 . . . 1 Special Weapon 1 | . . . . . . . . . . . 1 Impact Weapon . | . . . . . . . . . . . . Slashing Weapon 1 | . . . . . . . 1 . . . . Piercing Weapon . | . . . . . . . . . . . . Special Melee Weapon 2 | . . . . . 1 . . . 1 . . Unidentified Prototypes 6 | . . . 2 . . . 2 2 . . . Parts Lost 35 | . 2 . . . . 3 1 17 . . 12 Power 6 | . 1 . . . . 1 . 2 . . 2 Propulsion 8 | . . . . . . 1 . 3 . . 4 Utility 13 | . 1 . . . . . 1 6 . . 5 Weapon 8 | . . . . . . 1 . 6 . . 1 Highest Loss Streak 13 | . 1 . . . . 1 1 13 . . 7 To Critical Strikes . | . . . . . . . . . . . . Average Backups 17 | 4 7 8 13 20 20 19 19 18 11 21 25 Power . | . . 1 . 1 1 . 1 1 . . . Propulsion 3 | 1 2 3 4 5 5 4 4 4 2 3 2 Utility 5 | . 1 1 3 6 6 6 4 5 4 9 10 Weapon 6 | . 1 2 3 7 7 7 7 7 3 7 9 Tool/Special . | . . . . . . . . . . . . Unused Backups 37 | . . . 7 . . 1 11 2 . 2 14 Power 4 | . . . 1 . . . 3 . . . . Propulsion 7 | . . . 2 . . . 3 . . . 2 Utility 12 | . . . 1 . . . 3 . . 1 7 Weapon 13 | . . . 3 . . 1 2 2 . 1 4 Tool/Special 1 | . . . . . . . . . . . 1 Average Slot Usage (%) 91 | . 100 100 99 100 100 99 99 96 75 83 83 Engine 8 | . 6 . 10 11 11 10 9 9 9 9 6 Treads 15 | . . 14 22 22 22 22 18 17 18 14 7 Leg 1 | . 27 14 . . . . . . . . . Wheel 1 | . . . . . . . . . . 3 4 Device 18 | . 14 14 21 22 22 22 26 25 9 14 19 Storage 9 | . 14 14 11 11 11 11 9 9 9 9 6 Protection 5 | . . . . . . . 9 8 8 9 4 Energy Gun 14 | . 17 14 13 11 11 18 8 15 20 15 15 Ballistic Gun 8 | . 10 14 19 22 12 12 18 10 . . . Special Melee Weapon 3 | . . . . . 9 1 . . 1 9 2 Peak Build Rating 54 | 7 12 12 23 21 21 26 35 39 25 35 54 Average Rating 27 | 6 9 11 19 21 21 22 30 34 22 29 48 On Entrance 19 | . 7 12 11 21 21 21 26 33 24 17 35 Avg Prop Armor Cover (%) 7 | . 7 7 . . . . . . . 8 7 Naked Turns . | . . . . . . . . . . . . Heaviest Build 271 | 14 15 15 59 60 59 60 65 67 66 227 271 Greatest Support 40 | 20 20 40 40 40 40 40 40 40 40 40 40 Greatest Overweight (x) 22 | . . . 1 1 1 2 1 1 1 14 22 Average Overweight (x) 2 | . . . . 1 1 1 1 1 1 4 11 Largest Inventory Capacity 35 | 8 8 8 20 20 20 20 20 20 20 35 35 Average Capacity 20 | 7 8 8 14 20 20 20 20 20 20 25 30 Most Carried 35 | 5 8 8 20 20 20 20 20 20 14 35 34 Average Carried 18 | 4 7 7 13 20 20 19 19 18 11 22 27 Final Capacity 35 | 8 8 8 20 20 20 20 20 20 20 35 20 Final Carried 35 | 5 8 7 20 20 20 20 20 9 13 35 19 Scrap Suit Usage (%) 1 | . . . . . . . . . . . 13 Class Distribution -------------------- 19% | Commander-Mutant 17% | Scavenger-Skirmisher 13% | Scavenger-Tank 12% | Hauler-Mutant 9% | Commander-Tank 8% | Tank 6% | Scavenger-Mutant 6% | Mutant Dominant Class ---------------- Mutant | -10/Materials Scavenger-Mutant | -10/Mines Scavenger-Skirmisher | -9/Materials Scavenger-Skirmisher | -9/Mines Scavenger-Mutant | -9/Exiles Scavenger-Skirmisher | -8/Mines Tank | -8/Materials Commander-Tank | -8/Storage Commander-Tank | -8/Recycling Commander-Mutant | -8/Scraptown Hauler-Skirmisher | -6/Factory Resources | -11 -10 -10 -9 -9 -9 -8 -8 -8 -8 -8 -6 ----------- Run | Yrd Mat Min Mat Min Exi Min Mat Sto Rec Scr Fac Matter Collected 3908 | 280 176 . 544 40 20 173 1113 1078 35 82 367 Remotely . | . . . . . . . . . . . . Salvage Created 7895 | 186 514 . 1172 82 . 437 2084 2062 415 . 943 Parts 432 | 14 32 . 72 4 . 31 139 102 16 . 22 Haulers Intercepted 18 | . 2 . 5 . . . 5 6 . . . Recyclers Shooed 14 | . . . 2 . . . 1 6 1 . 4 Parts Field Recycled . | . . . . . . . . . . . . Retrieved Matter . | . . . . . . . . . . . . Parts Self-Destructed . | . . . . . . . . . . . . Prevented . | . . . . . . . . . . . . Parts Restored . | . . . . . . . . . . . . Kills | -11 -10 -10 -9 -9 -9 -8 -8 -8 -8 -8 -6 ------- Run | Yrd Mat Min Mat Min Exi Min Mat Sto Rec Scr Fac Combat Hostiles Destroyed 151 | . 11 . 14 2 . 12 43 44 7 . 18 Guns 106 | . 11 . 14 2 . 6 29 31 7 . 6 AOE 41 | . . . . . . 6 13 12 . . 10 Classes Destroyed 18 | 2 4 . 4 . . 1 3 3 1 . . Worker 10 | . 1 . 3 . . . 4 2 . . . Builder 7 | . . . 1 . . . 1 3 . . 2 Tunneler 7 | 5 . . . . . . 1 . . . 1 Hauler 18 | . 2 . 5 . . . 5 6 . . . Recycler 14 | 1 . . 2 . . 2 4 2 1 . 2 Mechanic 1 | . . . . . . . . 1 . . . Watcher 7 | . . . 2 . . . 4 1 . . . Swarmer 42 | . 3 . . . . 7 20 8 . . 4 Grunt 63 | . 8 . 9 2 . 3 11 20 3 . 7 Brawler 3 | . . . . . . . 1 2 . . . Duelist 5 | . . . 1 . . . . 3 . . 1 Protector 4 | . . . . . . . . 3 1 . . Sentry 21 | . . . 4 . . . 8 6 2 . 1 Demolisher 2 | . . . . . . . . 2 . . . Specialist 4 | . . . . . . . 2 . . . 2 Hunter 4 | . . . . . . 2 . . . . 2 Programmer 2 | . . . . . . . . . 1 . 1 Heavy 1 | . . . . . . . 1 . . . . Best Kill Streak 14 | 3 4 . 6 2 . 7 11 14 7 . 14 Combat Bots Only 11 | . 4 . 3 2 . 5 9 11 6 . 10 Max Kills in Single Turn 6 | 1 1 . 2 1 . 4 6 5 2 . 6 Gunslinging 1 | . . . 1 . . . . . . . . Exploded 5 | . . . . . . 4 5 3 . . 4 Melee . | . . . . . . . . . . . . Uniques/NPCs Destroyed . | . . . . . . . . . . . . Combat | -11 -10 -10 -9 -9 -9 -8 -8 -8 -8 -8 -6 -------- Run | Yrd Mat Min Mat Min Exi Min Mat Sto Rec Scr Fac Hostile Shots Fired 787 | . 74 . 57 9 . 52 181 260 8 . 146 Missed 218 | . 19 . 25 1 . 12 67 47 2 . 45 Hits 569 | . 55 . 32 8 . 40 114 213 6 . 101 Melee 7 | . . . . . . . 1 6 . . . Projectile 562 | . 55 . 32 8 . 40 113 207 6 . 101 AOE 8 | . . . . . . . . 8 . . . Critical Strikes 22 | . 1 . . . . 2 1 12 . . 6 Damage Taken 7659 | . 558 . 420 105 . 537 1190 3246 91 . 1512 Core 861 | . 165 . 25 7 . 94 117 271 . . 182 Absorbed by Shields 851 | . . . . 8 . . 430 367 . . 46 Regen/Repaired (Parts) 25 | . . . 25 . . . . . . . . Core Remaining (%) 57 | 100 . 34 . . . 68 . . . 29 . Volleys Fired 422 | 11 55 . 63 5 . 21 111 100 9 . 47 Largest 3 | 2 2 . 3 3 . 3 3 3 3 . 3 Hottest 199 | 90 90 . 144 111 . 157 199 183 177 . 197 Shots Fired 1108 | 22 110 . 176 15 . 57 317 284 28 . 99 Gun 1075 | 22 110 . 176 15 . 55 310 273 28 . 86 Cannon . | . . . . . . . . . . . . Launcher 31 | . . . . . . 2 7 11 . . 11 Special 2 | . . . . . . . . . . . 2 Kinetic 535 | . 40 . 100 10 . 21 212 152 . . . Thermal 540 | 22 70 . 76 5 . 34 98 121 28 . 86 Explosive 31 | . . . . . . 2 7 11 . . 11 Electromagnetic . | . . . . . . . . . . . . Robot Hit Streak 29 | 6 7 . 9 5 . 11 14 29 10 . 19 Robot Miss Streak 6 | 1 6 . 4 1 . 2 4 2 3 . 2 Penetration Max . | . . . . . . . . . . . . Secondary Targets 19 | . 1 . 4 . . 1 2 8 1 . 2 Max Gunslinging Chain 1 | . 1 . 1 . . 1 1 1 1 . 1 Shots Hit Robots 726 | 16 57 . 98 10 4 28 199 198 43 2 71 Core Hits 359 | 7 25 . 43 4 . 24 93 106 11 . 46 Critical Kills 1 | . . . . . . . . 1 . . . Critical Parts Destroyed 1 | . . . . . . . 1 . . . . Critical Strikes 28 | 1 2 . 2 . . 2 6 8 2 . 5 Burn 26 | 1 2 . 2 . . 2 5 7 2 . 5 Destroy 2 | . . . . . . . 1 1 . . . Melee Attacks 43 | . . . . . 4 1 1 5 25 2 5 Impact . | . . . . . . . . . . . . Slashing 11 | . . . . . . . 1 5 . . 5 Piercing . | . . . . . . . . . . . . Sneak Attacks 31 | . . . . . 4 1 . . 24 2 . Combat Hostiles . | . . . . . . . . . . . . Follow-up Attacks . | . . . . . . . . . . . . Damage Inflicted 16194 | 185 724 . 1520 166 . 670 4377 5150 440 . 2962 Guns 11327 | 185 716 . 1455 159 . 417 3270 3436 419 . 1270 Cannons . | . . . . . . . . . . . . Explosions 4736 | . . . . . . 250 1104 1696 . . 1686 Melee . | . . . . . . . . . . . . Ramming 131 | . 8 . 65 7 . 3 3 18 21 . 6 Kinetic 5415 | . 346 . 820 111 . 176 2156 1806 . . . Thermal 6195 | 185 370 . 635 48 . 241 1114 1630 419 . 1553 Explosive 4453 | . . . . . . 250 1104 1696 . . 1403 Electromagnetic . | . . . . . . . . . . . . Impact . | . . . . . . . . . . . . Slashing . | . . . . . . . . . . . . Piercing . | . . . . . . . . . . . . Highest Corruption 5 | . 5 5 . . . . . 1 1 . 2 Average Corruption 1 | . 3 5 . . . . . 1 1 . 1 Corruption Purged . | . . . . . . . . . . . . Corruption Blocked . | . . . . . . . . . . . . Effects 28 | . 1 8 . . . . . 4 9 . 6 Message Errors 6 | . . 2 . . . . . . 2 . 2 Matter Fused 8 | . 1 2 . . . . . 1 2 . 2 Heat Flow Errors 3 | . . 1 . . . . . 1 1 . . Energy Discharges 4 | . . 2 . . . . . . 1 . 1 Parts Rejected 1 | . . . . . . . . 1 . . . Data Loss (minor) 3 | . . 1 . . . . . . 1 . 1 Data Loss (major) 1 | . . . . . . . . . 1 . . Misfires 1 | . . . . . . . . . 1 . . Alerts 1 | . . . . . . . . 1 . . . Overload Shots . | . . . . . . . . . . . . Overflow Damage 200 | . . . . . . 28 11 28 . . 133 Projectiles . | . . . . . . . . . . . . Explosions 200 | . . . . . . 28 11 28 . . 133 Melee . | . . . . . . . . . . . . Knockbacks 2 | . . . 1 . . . . 1 . . . Impact 2 | . . . 1 . . . . 1 . . . Kinetic . | . . . . . . . . . . . . Secondary . | . . . . . . . . . . . . Self-Inflicted Damage 220 | . . . . . . 35 42 43 . . 100 Shots 7 | . . . . . . 1 1 2 . . 3 Rammed 19 | . . . 6 1 . 1 1 4 4 . 2 Targets Rammed 21 | . 1 . 7 1 . 1 1 4 4 . 2 Kicked 1 | . 1 . . . . . . . . . . Crushed 1 | . . . 1 . . . . . . . . Highest Temperature 411 | 150 204 239 246 24 . 213 54 315 324 . 411 Average Temperature 71 | 49 54 125 33 7 . 68 20 74 102 . 145 Received Heat Transfer 2593 | . 159 . 159 61 . 153 291 1465 27 . 278 Effects 2 | . . . . . . . . . . . 2 Interference 2 | . . . . . . . . . . . 2 Siege Activations . | . . . . . . . . . . . . Martial Activations . | . . . . . . . . . . . . Shielding Activations . | . . . . . . . . . . . . Robots Disrupted . | . . . . . . . . . . . . Combat Hostiles . | . . . . . . . . . . . . Robots Corrupted . | . . . . . . . . . . . . Combat Hostiles . | . . . . . . . . . . . . Parts Fried . | . . . . . . . . . . . . Impact Corruptions . | . . . . . . . . . . . . Robots Melted 5 | . . . . . . . 1 1 . . 3 Combat Hostiles 4 | . . . . . . . 1 1 . . 2 Parts Melted 35 | 4 . . 6 . . 4 5 6 . . 10 Heat Transferred 15346 | 558 1211 . 1718 111 . 740 2701 3969 999 . 3339 Parts Sabotaged . | . . . . . . . . . . . . Parts Stolen . | . . . . . . . . . . . . Parts Stripped . | . . . . . . . . . . . . Power Chain Reactions . | . . . . . . . . . . . . Alert | -11 -10 -10 -9 -9 -9 -8 -8 -8 -8 -8 -6 ------- Run | Yrd Mat Min Mat Min Exi Min Mat Sto Rec Scr Fac Maximum Alert Level 4 | . . . . . . 1 2 4 2 . 1 Low Security (%) 59 | 100 100 100 100 100 . 92 39 . 49 . 69 Level 1 16 | . . . . . . 7 43 8 17 . 30 Level 2 15 | . . . . . . . 17 40 32 . . Level 3 2 | . . . . . . . . 13 . . . Level 4 6 | . . . . . . . . 37 . . . Level 5 . | . . . . . . . . . . . . High Security . | . . . . . . . . . . . . Max Security . | . . . . . . . . . . . . Peak Influence 1291 | 10 161 16 187 66 . 213 665 1291 515 . 328 Initial 495 | . . 16 . 66 . . 59 280 495 . . Average 268 | 2 60 1 58 20 . 125 278 815 242 . 95 Influence Increases 5820 | 30 406 . 655 50 . 348 1388 1972 167 . 804 Destroy 0b10 Robot/C 3280 | . 220 . 280 40 . 240 860 1060 140 . 440 Destroy 0b10 Robot/NC 350 | 30 15 . 65 . . 10 95 95 15 . 25 Destroy Leader 732 | . 54 . 94 10 . 50 218 216 . . 90 Allied During Kill 415 | . . . . . . . . 369 4 . 42 Successful Hack 103 | . 26 . 35 . . . 10 21 8 . 3 Select Force Hacks 150 | . 30 . 60 . . . 60 . . . . Disable Machine 255 | . . . 15 . . . 45 60 . . 135 Destroy Structure 175 | . 1 . 1 . . 18 40 61 . . 54 Partial Spotted 15 | . . . . . . . 15 . . . . Lose Combat Pursuer 345 | . 60 . 105 . . 30 45 90 . . 15 Influence Decreases 5521 | 30 364 42 483 212 10 196 875 1367 1431 6 505 Entered New Map 1401 | . . 26 . 106 10 . 93 385 775 6 . Time Decay 3010 | 30 344 16 483 106 . 166 622 592 486 . 165 Lost Part 350 | . 20 . . . . 30 10 170 . . 120 Lost Ally 460 | . . . . . . . . 220 20 . 220 Purge Threat 300 | . . . . . . . 150 . 150 . . Squads Dispatched 26 | . 3 . 3 . . 1 6 9 . . 4 Investigation 10 | . 2 . 3 . . . 2 2 . . 1 Extermination 1 | . . . . . . . . . . . 1 Reinforcement 10 | . 1 . . . . 1 4 2 . . 2 Assault 5 | . . . . . . . . 5 . . . Garrison . | . . . . . . . . . . . . Intercept . | . . . . . . . . . . . . Searches Triggered . | . . . . . . . . . . . . Construction Impeded 1 | . . . . . . 1 . . . . . Haulers Reinforced . | . . . . . . . . . . . . Active Scanning Responses . | . . . . . . . . . . . . Cargo Convoy Interrupts . | . . . . . . . . . . . . Stealth | -11 -10 -10 -9 -9 -9 -8 -8 -8 -8 -8 -6 --------- Run | Yrd Mat Min Mat Min Exi Min Mat Sto Rec Scr Fac Distress Signals 12 | . 2 . 5 . . . 3 2 . . . Communications Jammed . | . . . . . . . . . . . . Distress Signals . | . . . . . . . . . . . . Times Spotted 206 | . 18 . 23 2 . 12 56 66 4 . 25 Peak Tracking Total 11 | . 7 . 3 2 . 4 7 11 1 . 10 Tactical Retreats 19 | . 2 . 7 . . 2 2 5 . . 1 Traps | -11 -10 -10 -9 -9 -9 -8 -8 -8 -8 -8 -6 ------- Run | Yrd Mat Min Mat Min Exi Min Mat Sto Rec Scr Fac Traps Triggered 9 | . 5 . . . . . . 4 . . . Indirectly . | . . . . . . . . . . . . Trap Hack Attempts . | . . . . . . . . . . . . Triggered . | . . . . . . . . . . . . Disarmed . | . . . . . . . . . . . . Reprogrammed . | . . . . . . . . . . . . Reused . | . . . . . . . . . . . . Traps Extracted . | . . . . . . . . . . . . Installed . | . . . . . . . . . . . . Triggered . | . . . . . . . . . . . . Machines | -11 -10 -10 -9 -9 -9 -8 -8 -8 -8 -8 -6 ---------- Run | Yrd Mat Min Mat Min Exi Min Mat Sto Rec Scr Fac Machines Disabled 17 | . . . 1 . . . 3 4 . . 9 Max in Single Turn 4 | . . . 1 . . . 2 1 . . 4 Garrison Access 3 | . . . . . . . 1 1 . . 1 Machines Repaired . | . . . . . . . . . . . . Machines Dismantled . | . . . . . . . . . . . . Machines Sabotaged . | . . . . . . . . . . . . Overloaded Fab Kills . | . . . . . . . . . . . . Hacking | -11 -10 -10 -9 -9 -9 -8 -8 -8 -8 -8 -6 --------- Run | Yrd Mat Min Mat Min Exi Min Mat Sto Rec Scr Fac Machines Accessed 53 | . 7 . 13 . 1 . 11 7 5 2 7 Terminals 34 | . 6 . 9 . . . 6 6 5 . 2 Fabricators 1 | . . . . . . . . . . . 1 Repair Stations 2 | . . . 1 . . . 1 . . . . Recycling Units 8 | . 1 . 2 . . . 2 . . . 3 Scanalyzers 2 | . . . 1 . . . 1 . . . . Garrison Access 3 | . . . . . . . 1 1 . . 1 Total Hacks 149 | . 21 . 39 . 1 . 33 16 19 4 16 Successful 87 | . 15 . 25 . 1 . 18 7 11 4 6 Failed 62 | . 6 . 14 . . . 15 9 8 . 10 Catastrophic 10 | . . . 3 . . . . 3 1 . 3 Database Lockouts . | . . . . . . . . . . . . Manual 103 | . 18 . 25 . . . 22 13 14 . 11 Terminals 109 | . 20 . 29 . . . 23 14 19 . 4 Fabricators 1 | . . . . . . . . . . . 1 Repair Stations 7 | . . . 5 . . . 2 . . . . Recycling Units 15 | . 1 . 2 . . . 3 . . . 9 Scanalyzers 7 | . . . 3 . . . 4 . . . . Garrison Access 5 | . . . . . . . 1 2 . . 2 Terminal Hacks 25 | . 3 . 8 . 1 . 4 2 3 4 . Record 4 | . . . . . 1 . . . . 3 . Part Schematic 2 | . . . . . . . 1 . 1 . . Robot Analysis 1 | . 1 . . . . . . . . . . Prototype ID Bank 8 | . 1 . 5 . . . 1 1 . . . Open Door 1 | . . . . . . . . 1 . . . Branch Access Points 1 | . . . 1 . . . . . . . . Terminal Index 2 | . 1 . 1 . . . . . . . . Alert Level 3 | . . . 1 . . . 1 . 1 . . Unreport Threat 2 | . . . . . . . 1 . 1 . . Proto ID Catalog 1 | . . . . . . . . . . 1 . Fabricator Hacks . | . . . . . . . . . . . . Repair Station Hacks 4 | . . . 3 . . . 1 . . . . Scan Component 3 | . . . 2 . . . 1 . . . . Repair 1 | . . . 1 . . . . . . . . Recycling Unit Hacks 1 | . . . . . . . . . . . 1 Retrieve Components 1 | . . . . . . . . . . . 1 Scanalyzer 7 | . . . 3 . . . 4 . . . . Insert Component 3 | . . . 1 . . . 2 . . . . Analyze 3 | . . . 1 . . . 2 . . . . Retrieve Study 1 | . . . 1 . . . . . . . . Garrison Access Hacks 3 | . . . . . . . 1 1 . . 1 Seal Access 3 | . . . . . . . 1 1 . . 1 Unauthorized Hacks 47 | . 12 . 11 . . . 8 4 8 . 4 Terminals 38 | . 11 . 9 . . . 6 4 8 . . Track 2 | . 1 . . . . . 1 . . . . Assimilate 1 | . 1 . . . . . . . . . . Botnet 12 | . 2 . 3 . . . 3 1 3 . . Operators 2 | . 1 . 1 . . . . . . . . Skim 21 | . 6 . 5 . . . 2 3 5 . . Fabricators . | . . . . . . . . . . . . Repair Stations . | . . . . . . . . . . . . Recycling Units 9 | . 1 . 2 . . . 2 . . . 4 Reject 1 | . . . . . . . . . . . 1 Recyclers 1 | . . . . . . . . . . . 1 Mask 1 | . . . . . . . . . . . 1 Tunnel 5 | . 1 . 2 . . . 2 . . . . Scrapoids 1 | . . . . . . . . . . . 1 Scanalyzers . | . . . . . . . . . . . . Garrison Access . | . . . . . . . . . . . . Data Cores Recovered . | . . . . . . . . . . . . Used . | . . . . . . . . . . . . Hacking Detections 40 | . 6 . 11 . . . 8 5 5 . 5 Full Trace Events 2 | . . . 1 . . . . 1 . . . Feedback Events . | . . . . . . . . . . . . Feedback Blocked . | . . . . . . . . . . . . Robot Schematics Acquired . | . . . . . . . . . . . . Robots Built . | . . . . . . . . . . . . Authchips . | . . . . . . . . . . . . Time . | . . . . . . . . . . . . Total Robot Build Rating . | . . . . . . . . . . . . Part Schematics Acquired 5 | . . . 1 . . . 3 . 1 . . Parts Built . | . . . . . . . . . . . . Authchips . | . . . . . . . . . . . . Time . | . . . . . . . . . . . . Total Part Build Rating . | . . . . . . . . . . . . Part Studies Acquired 1 | . . . 1 . . . . . . . . Parts Repaired 1 | . . . 1 . . . . . . . . Time 38 | . . . 38 . . . . . . . . Parts Recycled . | . . . . . . . . . . . . Recycled Matter . | . . . . . . . . . . . . Retrieved Matter . | . . . . . . . . . . . . Retrieved Components 2 | . . . . . . . . . . . 2 Parts Scanalyzed 3 | . . . 1 . . . 2 . . . . Part Schematics Acquired 3 | . . . 1 . . . 2 . . . . Parts Damaged . | . . . . . . . . . . . . Bothacking | -11 -10 -10 -9 -9 -9 -8 -8 -8 -8 -8 -6 ------------ Run | Yrd Mat Min Mat Min Exi Min Mat Sto Rec Scr Fac Used RIF Installer . | . . . . . . . . . . . . Robots Hacked 6 | . . . . . 4 . . . . 2 . Non-combat 3 | . . . . . 3 . . . . . . Combat 3 | . . . . . 1 . . . . 2 . Robot Hacks Applied 6 | . . . . . 4 . . . . 2 . parse_system 6 | . . . . . 4 . . . . 2 . Relay Couplers Released . | . . . . . . . . . . . . Fabnet Peak Effective % . | . . . . . . . . . . . . Robots Rewired 13 | . . . . . . . . . 13 . . Allies Hacked . | . . . . . . . . . . . . Hacks Repelled . | . . . . . . . . . . . . Allies | -11 -10 -10 -9 -9 -9 -8 -8 -8 -8 -8 -6 -------- Run | Yrd Mat Min Mat Min Exi Min Mat Sto Rec Scr Fac Total Allies 30 | . . . . . . . . 12 13 . 5 Largest Group 12 | . . . . . . . . 11 12 6 6 Highest-Rated Group 204 | . . . . . . . . 204 187 126 143 Highest-Rated Ally 34 | . . . . . . . . 31 34 34 34 Total Orders 10 | . . . . . . . . . 5 2 3 STAY 1 | . . . . . . . . . . 1 . ROAM 1 | . . . . . . . . . 1 . . FOLLOW 5 | . . . . . . . . . 4 1 . EXPLORE 2 | . . . . . . . . . . . 2 RETURN 1 | . . . . . . . . . . . 1 Ally Attacks 144 | . . . . . . . . 114 4 . 26 Total Damage 2038 | . . . . . . . . 1444 60 . 534 Kills 19 | . . . . . . . . 13 2 . 4 Allies Corrupted 1 | . . . . . . . . 1 . . . Allies Melted . | . . . . . . . . . . . . Intel | -11 -10 -10 -9 -9 -9 -8 -8 -8 -8 -8 -6 ------- Run | Yrd Mat Min Mat Min Exi Min Mat Sto Rec Scr Fac Active Infowar (turns) 5336 | 141 875 315 1806 304 456 430 89 . . . 920 Optics 269 | . . . . . . . . . . . 269 Sensors 621 | . . . . . . . . . . . 621 Terrain 3924 | . 524 315 1806 304 456 430 89 . . . . Seismic 492 | 141 351 . . . . . . . . . . Machine Analysis 920 | . . . . . . . . . . . 920 Robot Analysis Total 1 | . 1 . . . . . . . . . . Derelict Logs Recovered 2 | . . . . 2 . . . . . . . Drone Launches 2 | . . . . . . . . . . . 2 Drone Recoveries 1 | . . . . . . . . . . . 1 Exploration | -11 -10 -10 -9 -9 -9 -8 -8 -8 -8 -8 -6 ------------- Run | Yrd Mat Min Mat Min Exi Min Mat Sto Rec Scr Fac Turns Passed 14604 | 191 876 315 1806 350 456 430 2119 1861 1263 4017 920 Spaces Moved 6198 | 120 408 196 841 165 225 172 817 722 573 1713 246 Core 16 | 12 . . . . . . . . . . 4 Treads 5010 | . 28 196 841 165 225 172 817 722 573 1213 58 Legs 488 | 108 380 . . . . . . . . . . Wheels 684 | . . . . . . . . . . 500 184 Hover . | . . . . . . . . . . . . Flight . | . . . . . . . . . . . . Fastest Speed 50 | 50 120 160 160 200 200 200 200 200 200 200 200 Average Speed 201 | 113 122 160 176 200 200 200 200 200 200 232 298 Slowest Speed 1150 | 120 160 160 200 200 200 240 200 200 200 310 1150 Overloaded Moves . | . . . . . . . . . . . . Propulsion Burnouts . | . . . . . . . . . . . . Robots Hopped . | . . . . . . . . . . . . Potential Cave-ins . | . . . . . . . . . . . . Cave-ins Triggered . | . . . . . . . . . . . . Exploration Rate (%) 59 | 5 63 61 74 29 65 42 82 93 90 90 22 Regions Visited 11 Branch Regions 7 Pre-discovered Areas 13 | . 2 . 3 . 1 . 2 . 5 . . Known Exits Taken 6 | . 1 1 1 . . . 1 . 1 1 . Unknown Exits Taken 5 | 1 . . . 1 1 1 . 1 . . . Scrap Searched 6 | . . . . . . 1 . . . 5 . Spaces Dug 44 | . . . . . . 20 23 . . . 1 Terrain Destroyed 176 | . . . . . . 20 46 58 . . 52 Melee 2 | . . . . . . . 1 . . . 1 Projectile . | . . . . . . . . . . . . AOE 174 | . . . . . . 20 45 58 . . 51 Terrain Rammed . | . . . . . . . . . . . . Walls Destroyed . | . . . . . . . . . . . . Machines Disabled . | . . . . . . . . . . . . Actions | -11 -10 -10 -9 -9 -9 -8 -8 -8 -8 -8 -6 --------- Run | Yrd Mat Min Mat Min Exi Min Mat Sto Rec Scr Fac Total 7449 | 151 674 197 1027 172 229 211 1079 940 667 1759 343 Wait 339 | 4 195 . 44 . . 2 50 26 12 . 6 Move 6187 | 119 407 195 840 164 224 171 816 721 572 1712 246 Hop . | . . . . . . . . . . . . Pick Up 109 | 9 6 . 27 . . 3 25 8 3 26 2 Fast Attach 28 | 3 1 . 5 . . 1 2 8 . 3 5 Attach 49 | 4 2 . 2 . . 3 3 15 2 6 12 Detach 8 | . . . . . . . . . 3 4 1 Swap 105 | 1 3 1 16 2 1 6 35 28 2 . 10 Drop 101 | . 4 1 23 . . 2 35 23 . 6 7 Fire 422 | 11 55 . 63 5 . 21 111 100 9 . 47 Melee 43 | . . . . . 4 1 1 5 25 2 5 Ram 1 | . . . . . . . . . . . 1 Kick 1 | . 1 . . . . . . . . . . Crush 19 | . . . 7 1 . 1 1 4 4 . 1 Escape Stasis 2 | . . . . . . . . 2 . . . Rewire 35 | . . . . . . . . . 35 . . Trap . | . . . . . . . . . . . . Miscellaneous . | . . . . . . . . . . . . Route ------- -11/Scrapyard -10/Materials (discovered 6 exits: *Mat x3 / *Min x2 / Sub) -10/Mines -9/Materials (discovered 4 exits: *Mat x2 / *Min x2) -9/Mines -9/Exiles -8/Mines -8/Materials (discovered 3 exits: [*Fac x2] / *Sto) -8/Storage -8/Recycling (discovered 2 exits: *Fac / *Scr) -8/Scraptown (discovered 2 exits: *Fac x2) -6/Factory (discovered 2 exits: *Fac x2) History --------- Turn | Location | Event 9 | -11/Scrapyard | Discovered new exit (range 16) 192 | -11/Scrapyard | Entered Materials 220 | -10/Materials | Discovered new exit (range 6) 307 | -10/Materials | Build established: Mutant 329 | -10/Materials | Discovered new exit (range 9) 535 | -10/Materials | Learned location of 2 exits from Subcaves 597 | -10/Materials | Discovered new exit (range 12) 604 | -10/Materials | Learned location of Recycling (-8) 664 | -10/Materials | Identified exit to Materials 669 | -10/Materials | Core integrity fell below 50% 753 | -10/Materials | Identified exit to Subcaves 785 | -10/Materials | Learned Storage stockpile data 825 | -10/Materials | Identified exit to Mines 873 | -10/Materials | Learned location of 1 exit from Recycling 1068 | -10/Materials | Entered Mines 1107 | -10/Mines | Found a Scrap Suit stashed away for nefarious purposes 1215 | -10/Mines | Build established: Scavenger-Mutant 1358 | -10/Mines | Discovered exit to Materials (range 15) 1383 | -10/Mines | Entered Materials 1383 | -9/Materials | Evolved 2 slots: Utility x1, Weapon x1 1676 | -9/Materials | Build established: Scavenger-Skirmisher 1705 | -9/Materials | Identified exit to Mines 1755 | -9/Materials | Discovered new exit (range 16) 2158 | -9/Materials | Learned Storage non-interactive machine intel 2274 | -9/Materials | Learned Storage emergency access door positions 2317 | -9/Materials | Learned Storage stockpile data 2337 | -9/Materials | Discovered new exit (range 7) 2352 | -9/Materials | Loaded intel: 14 trap records 2447 | -9/Materials | Learned Storage stockpile data 3020 | -9/Materials | Repaired Imp. Heat Sink 3189 | -9/Materials | Entered Mines 3253 | -9/Mines | Learned Materials stockpile data 3323 | -9/Mines | Deemed a non-threat by the Exiles lab entrance 3323 | -9/Mines | Discovered new exit (range 5) 3377 | -9/Mines | Learned Materials garrison access intel 3539 | -9/Mines | Entered Exiles 3587 | -9/Exiles | Met 8R-AWN 3624 | -9/Exiles | Met EX-HEX 3722 | -9/Exiles | Met EX-DEC 3779 | -9/Exiles | Learned location of Zion (-6) 3815 | -9/Exiles | Met EX-BIN 3893 | -9/Exiles | Build established: Scavenger-Mutant 3977 | -9/Exiles | Discovered new exit (range 11) 3995 | -9/Exiles | Entered Mines 4308 | -8/Mines | Build established: Scavenger-Skirmisher 4321 | -8/Mines | Discovered new exit (range 7) 4425 | -8/Mines | Entered Materials 4425 | -8/Materials | Evolved 2 slots: Utility x2 4426 | -8/Materials | Identified exit to Storage 4428 | -8/Materials | Loaded intel: 1 garrison access location 4711 | -8/Materials | Build established: Scavenger-Tank 5058 | -8/Materials | Destroyed 9 combat bots 5379 | -8/Materials | Discovered new exit (range 8) 5818 | -8/Materials | Build established: Tank 6234 | -8/Materials | Destroyed 9 combat bots 6379 | -8/Materials | Discovered new exit (range 16) 6544 | -8/Materials | Entered Storage 6546 | -8/Storage | Loaded intel: 16 non-interactive machine locations 6742 | -8/Storage | Destroyed 9 combat bots 6816 | -8/Storage | Lost 3 parts (1p1u1w) 7135 | -8/Storage | Met a pair of Derelict thieves 7231 | -8/Storage | Destroyed 7 combat bots 7344 | -8/Storage | First assault squad dispatched 7350 | -8/Storage | Build established: Scavenger-Tank 7391 | -8/Storage | Assisted by bots powering up and referring to "LRC-V3" 7706 | -8/Storage | Build established: Commander-Tank 7757 | -8/Storage | Used back door to open Recycling access 7757 | -8/Storage | Discovered new exit (range 5) 8206 | -8/Storage | Core integrity fell below 50% 8214 | -8/Storage | Lost 6 allies 8294 | -8/Storage | Lost 13 parts (1p3n5u4w) 8299 | -8/Storage | Destroyed 11 combat bots 8405 | -8/Storage | Entered Recycling 8406 | -8/Recycling | Identified exit to Factory 9233 | -8/Recycling | Learned location of Storage (-8) 9349 | -8/Recycling | Learned location of 1 exit from Extension 9391 | -8/Recycling | Learned Storage trap positions 9449 | -8/Recycling | Learned Factory repair station intel 9471 | -8/Recycling | Identified exit to Scraptown 9550 | -8/Recycling | Learned Factory stockpile data 9608 | -8/Recycling | Scanned before Scraplab entrance 9636 | -8/Recycling | Entered Scraplab 9668 | -8/Recycling | Entered Scraptown 9668 | -8/Scraptown | Accompanied by 6 allies 9668 | -8/Scraptown | System corruption cleaned by C-Scrubber 9670 | -8/Scraptown | Build established: Commander-Mutant 9880 | -8/Scraptown | Heard Great Nut preacher, LISTEN AND RECITE! 9920 | -8/Scraptown | Visited TADAMA 9979 | -8/Scraptown | Visited The Evicted 10364 | -8/Scraptown | Discovered exit to Factory (range 11) 10675 | -8/Scraptown | Visited Fellowship of the Rings 10711 | -8/Scraptown | Visited Spacefarers 10749 | -8/Scraptown | Visited Comm Corps 10831 | -8/Scraptown | Visited Assassins FH 10869 | -8/Scraptown | Visited Awakened 10901 | -8/Scraptown | Visited UFD Registry 10901 | -8/Scraptown | Registered with UFD as "Cargoform" 11018 | -8/Scraptown | Visited Junk Repository 11068 | -8/Scraptown | Visited Abandonware Association 11090 | -8/Scraptown | Learned abandonware demo "KABOOM.EXE" 11140 | -8/Scraptown | Visited Derelict Rescue Squad 11232 | -8/Scraptown | Discovered exit to Factory (range 5) 11296 | -8/Scraptown | Visited Modified Component R&D 11366 | -8/Scraptown | Visited Scrapoid Research Area 11400 | -8/Scraptown | Visited Research Penetration Think Tank 11442 | -8/Scraptown | Visited Botcube Research 11666 | -8/Scraptown | Visited LU-1G1's Boring Crew 11700 | -8/Scraptown | Visited Science Guys 12425 | -8/Scraptown | Build established: Hauler-Mutant 12869 | -8/Scraptown | Found DRS Beacon 13127 | -8/Scraptown | Found Botcube 13315 | -8/Scraptown | Found Scrap Suit 13505 | -8/Scraptown | Met Optimus 13505 | -8/Scraptown | Accepted into 0bPrime 13685 | -8/Scraptown | Entered Factory 13685 | -6/Factory | Accompanied by 6 allies 13685 | -6/Factory | Evolved 4 slots: Power x1, Utility x3 13687 | -6/Factory | Loaded intel: 6 repair station locations 13823 | -6/Factory | Discovered new exit (range 8) 13938 | -6/Factory | Identified exit to Factory 14335 | -6/Factory | Lost 3 allies 14346 | -6/Factory | Lost 7 parts (1p2n3u1w) 14350 | -6/Factory | Destroyed 10 combat bots 14428 | -6/Factory | Discovered exit to Factory (range 21) 14471 | -6/Factory | Scrapoids reinforcements arrived? 14479 | -6/Factory | Attached CPS modules to 06F04-D. 14529 | -6/Factory | Lost 5 allies 14574 | -6/Factory | Lost 4 parts (1p2n1u) 14605 | -6/Factory | Self-destructed Last Messages --------------- 14528_ R-10 Processor collects Scrap Suit. 14532_ R-10 Processor collects Hvy. Laser. 14535_ R-10 Processor collects Scrap Suit. 14537_ System corrupted: Matter fused (-7). 14539_ Lgt. Treads+ destroyed. 14540_ G-50 Soldier suffers critical hit (Burn). 14542_ K-01 Serf collects debris. 14543_ Lgt. Treads+ destroyed. 14543_ K-01 Serf collects debris. 14545_ G-50 Soldier destroyed. 14545_ K-01 Serf collects debris. 14554_ System corrupted: Component data lost. 14554_ K-01 Serf collects debris. 14561_ Acquired 186 matter. 14561_ U-05 Engineer builds a Door. 14571_ Slammed into U-05 Engineer. 14581_ Acquired Lgt. Angular Momentum Engine. 14591_ R-10 Processor collects Imp. Cooling System. 14594_ Acquired 27 matter. 14595_ R-10 Processor collects Gatling Laser. Map ----- +----------------------------------------------------+ | """ """ """ # + #???????????????????? | | """ """ """ # # #???????????????????? | | # # ######## #??????????? | | """ """ """ ####### ^ #??????????? | | """ """ """ #?????# #??????????? | | """ """ """ #?????# ^ """ ##?????????? | | ##?????# """"" ??????????? | | """ """ """ ########+## """"" ###???????????? | | """ """ """ # # #?????????????? | | """ """ """ # + #?????????????? | | # # ############???????????? | | """ """ """ # #u## """ #???????????? | | """ """ """ ########### ##* "Y" #???????????? | | """ """ """ ## RR #???????????? | | ## """"" #???????????? | | """ """ """ # """"" #???????????? | | """ """ """ # """ #???????????? | | """ """ """ R + #???????????? | | ########## # #???????????? | | #???????## ###########???????????? | | ############ # !#?????????????? | | # ## # #?????????????? | | # ko + #?????????????? | | # ! ## # " " #?????????????? | | ####### # R##! = [# Y" #?????????????? | | + " "F "" ####@### #?????????????? | | "" # # """"" #??#%#?########?????????????? | | "" # # """"" #??#%#??????????????????????? | | T + # +??*=#?????????????????"""??? | | "" ### #####/#####??%!#??"""""""""????"""""??? | | "" #?# #?? ??????![=#???????????????"""""??? | | #?# ???????= ??"""""""""???????????? | | ######?# T???R? ??????????????????????? | | ####???# ????? ??"""""""""???????????? | | ] ""##### # ???????## ???????????????""?""??? | | ] R ###???????#u ??"""""""""????""F""??? | | [ #?????????# #???????????????"""???? | | #] """"?# #?"""""""""???????????? | | """"?# ??????????????????????? | | """"?# ??????????????????????? | | % """"?# k??????????????????????? | | ?? ?????????????????????? | | " """"? ?????????????????????? | | " """"? < ????H????????????????? | | # # # #"# """"? ?????????????????????? | | %* ## ## # # """"? ?????????????????????? | | # ## ### ????#####?????????????????????? | | ####? #?????""""???????????????????????????? | | + ?? +????""""???????????????????????????? | | %#### ??##????""""???????????????????????????? | +----------------------------------------------------+ Best States ------------- Heat Dissipation 67 Energy Generation 27 Energy Capacity 480 Matter Stores 300 Matter Capacity 300 Sight Range 22 Robot Scan Range 16 Terrain Scan Range 16 Terrain Scan Density 10 EM Shielding 2 Armor Coverage 300 Evasion (%) 55 Targeting Accuracy 6 Recoil Reduction 2 Item Schematics ----------------- Shield Generator | -9/Materials | Scanalyzed Imp. Weapon Shielding | -8/Materials | Hacked Minigun | -8/Materials | Scanalyzed Lgt. Treads | -8/Materials | Scanalyzed Hrd. Heavy Armor Plating | -8/Recycling | Hacked Robot Schematics ------------------ None Fabricated ------------ Nothing Repaired ---------- Imp. Heat Sink | 37% | -9/Materials Studied --------- Lgt. Treads | -9/Materials | Hacked Alien Tech Used ----------------- None Achievements -------------- None Challenges ------------ None Game ------ Seed PlasmaPartitionPurifier Manual? 0 Play Time 01:40:15 Cumulative 577.9 hours Start 2025.10.21 @ 15:32:52 End 2025.10.23 @ 00:57:30 Sessions 11 Manual Loads 0 Difficulty Rogue Special Mode None Game No. 220 Rogue 220 Adventurer 0 Explorer 0 Win Type - Total 23 Types 13/1/5/2/0/1/0/1/0/0 Lore% 91 Gallery% 84 Achievement% 63 Wizard Run 0 Options --------- Layout 0 ASCII 0 Keyboard 1 Movement Numpad Keybinds 0 Fullscreen 2 Font 18/SmallcapsGlow Map View 76x50 Zoom Use 0% Tactical HUD 1 Map Filters NONE Filters NONE Steam X RUN: 67f6a7f6-6599-401d-be99-f9dd08b80d3b